fUSD/lending_fUSD_20251110
["ID","MTS","AMOUNT","RATE_DAILY","PERIOD"]
[393576500,1762809032604,-500.0,0.00017173,2]
[393576501,1762809032613,-500.0,0.00017173,2]
[393576502,1762809032623,-500.0,0.00017173,2]
[393576503,1762809032633,-500.0,0.00017173,2]
[393576504,1762809032642,-500.0,0.00017173,2]
[393576505,1762809032651,-500.0,0.00017173,2]
[393576506,1762809032660,-500.0,0.00017173,2]
[393576507,1762809032670,-203.26715863,0.00017173,2]
[393576508,1762809032679,-500.47716849,0.00017173,2]
[393576509,1762809032689,-500.0,0.00017173,2]
[393576510,1762809032698,-500.0,0.00017173,2]
[393576511,1762809032707,-195.0,0.00017174,2]
[393576512,1762809032716,-250.0,0.00017174,2]
[393576513,1762809032726,-195.0,0.00017174,2]
[393576514,1762809032736,-500.0,0.00017205,2]
[393576515,1762809032744,-3772.34889464,0.00017251,2]
[393576516,1762809032753,-500.0,0.00017256,2]
[393576517,1762809032762,-500.0,0.00017256,2]
[393576518,1762809032771,-500.0,0.00017256,2]
[393576519,1762809032780,-500.0,0.00017256,2]
[393576520,1762809032789,-500.0,0.00017256,2]
[393576521,1762809032798,-500.0,0.00017256,2]
[393576522,1762809032807,-166.66,0.00017256,2]
[393576523,1762809032816,-7225.41976461,0.00017257,2]
[393576524,1762809032828,-1000.0,0.000173,2]
[393576525,1762809032837,-501.20828593,0.00017323,2]
[393576526,1762809032847,-3772.34889464,0.00017344,2]
[393576527,1762809032856,-7225.41976461,0.00017349,2]
[393576528,1762809032865,-300.0,0.00017376,2]
[393576529,1762809032875,-300.0,0.00017397,2]
[393576530,1762809032884,-705.23,0.00017419,2]
[393576531,1762809032893,-3772.34889464,0.00017437,2]
[393576532,1762809032902,-7225.41976461,0.00017441,2]
[393576533,1762809032911,-166.66,0.00017511,2]
[393576534,1762809032922,-3772.34889464,0.00017529,2]
[393576535,1762809032931,-7225.41976461,0.00017532,2]
[393576536,1762809032941,-221.96065187,0.00017544,2]
[393576537,1762809032949,-1557.0,0.00017548,2]
[393576538,1762809032958,-1557.0,0.0001762,2]
[393576539,1762809032968,-3772.34889464,0.00017622,2]
[393576540,1762809032977,-7225.41976461,0.00017624,2]
[393576541,1762809032987,-2065.0,0.00017638,2]
[393576542,1762809032997,-1028.69958793,0.00017667,2]
[393576543,1762809033006,-1557.0,0.00017673,2]
[393576544,1762809033016,-705.23,0.00017693,2]
[393576545,1762809033025,-3772.34889464,0.00017715,2]
[393576546,1762809033035,-7225.41976461,0.00017716,2]
[393576547,1762809033048,-1000.0,0.00017721,2]
[393576548,1762809033059,-1000.0,0.00017721,2]
[393576549,1762809033068,-1000.0,0.00017721,2]
[393576550,1762809033077,-1000.0,0.00017721,2]
[393576551,1762809033086,-1000.0,0.00017721,2]
[393576552,1762809033095,-2065.0,0.00017771,2]
[393576553,1762809033104,-3772.34889464,0.00017807,2]
[393576554,1762809033113,-7225.41976461,0.00017808,2]
[393576555,1762809033123,-1557.0,0.00017838,2]
[393576556,1762809033132,-500.0,0.00017894,2]
[393576557,1762809033141,-588.74165764,0.00017898,2]
[393576558,1762809033150,-150.0,0.00017899,2]
[393576559,1762809033160,-150.0,0.00017899,2]
[393576560,1762809033173,-150.0,0.00017899,2]
[393576561,1762809033183,-150.0,0.00017899,2]
[393576562,1762809033192,-150.0,0.00017899,2]
[393576563,1762809033202,-150.0,0.00017899,2]
[393576564,1762809033215,-348.79356423,0.00017899,2]
[393576565,1762809033224,-150.0,0.00017899,2]
[393576566,1762809033234,-500.0,0.00017899,2]
[393576567,1762809033243,-500.0,0.00017899,2]
[393576568,1762809033253,-500.0,0.00017899,2]
[393576569,1762809033263,-150.0,0.00017899,2]
[393576570,1762809033272,-150.0,0.00017899,2]
[393576571,1762809033283,-500.0,0.00017899,2]
[393576572,1762809033293,-170.72806348,0.000179,2]
[393576573,1762809033302,-360.35043771,0.000179,2]
[393576574,1762809033311,-3772.34889464,0.000179,2]
[393576575,1762809033320,-7225.41976461,0.000179,2]
[393576576,1762809033330,-523.03317909,0.000179,2]
[393576577,1762809033339,-1557.0,0.00017914,2]
[393576578,1762809033348,-500.0,0.00017944,2]
[393576579,1762809033357,-500.0,0.00017944,2]
[393576580,1762809033366,-7589.0,0.00017945,2]
[393576581,1762809033375,-500.0,0.00017954,2]
[393576582,1762809033384,-500.0,0.00017954,2]
[393576583,1762809033393,-500.0,0.00017954,2]
[393576584,1762809033402,-500.0,0.00017954,2]
[393576585,1762809033411,-10171.7558815,0.00017955,2]
[393576586,1762809033420,-473109.606503,0.00017955,2]
[393576587,1762809033429,-8075.8420054,0.00017955,2]
[393576588,1762809033439,-705.23,0.00017967,2]
[393576589,1762809033448,-13666.0,0.00017973,2]
[393576590,1762809033457,-2170.0,0.00017973,2]
[393576591,1762809033466,-500.0,0.00017973,2]
[393576592,1762809033475,-503.6822994,0.00017973,2]
[393576593,1762809033484,-500.0,0.00017973,2]
[393576594,1762809033493,-500.0,0.00017973,2]
[393576595,1762809033502,-502.27692718,0.00017973,2]
[393576596,1762809033512,-500.0,0.00017973,2]
[393576597,1762809033521,-519.52123932,0.00017973,2]
[393576598,1762809033531,-500.0,0.00017973,2]
[393576599,1762809033540,-595.29464106,0.00017973,2]
[393576600,1762809033550,-164.43334461,0.00017973,2]
[393576601,1762809033559,-500.0,0.00017973,2]
[393576602,1762809033568,-392.14835424,0.00017973,2]
[393576603,1762809033578,-500.0,0.00017973,2]
[393576604,1762809033587,-500.0,0.00017973,2]
[393576605,1762809033597,-500.0,0.00017973,2]
[393576606,1762809033606,-500.0,0.00017973,2]
[393576607,1762809033615,-500.65456029,0.00017973,2]
[393576608,1762809033624,-500.0,0.00017973,2]
[393576609,1762809033634,-501.15363203,0.00017973,2]
[393576610,1762809033643,-500.0,0.00017973,2]
[393576611,1762809033653,-500.0,0.00017973,2]
[393576612,1762809033662,-501.91090021,0.0001799,2]
[393576613,1762809033671,-501.91090021,0.0001799,2]
[393576614,1762809033680,-501.91090021,0.0001799,2]
[393576615,1762809033690,-151.0,0.00017997,2]
[393576616,1762809033700,-151.0,0.00017997,2]
[393576617,1762809033709,-151.0,0.00017997,2]
[393576618,1762809033719,-5362.0,0.00017998,2]
[393576619,1762809033728,-500.0,0.00017998,2]
[393576620,1762809033738,-500.0,0.00017998,2]
[393576621,1762809033748,-307.45218061,0.00017998,2]
[393576622,1762809033758,-538.08323017,0.00017998,2]
[393576623,1762809033767,-142444.20302526,0.00017998,2]
[393576624,1762809033777,-500.0,0.00017999,2]
[393576625,1762809033787,-500.0,0.00017999,2]
[393576626,1762809033797,-500.0,0.00017999,2]
[393576627,1762809033806,-500.0,0.00017999,2]
[393576628,1762809033817,-500.0,0.00017999,2]
[393576629,1762809033827,-500.0,0.00017999,2]
[393576630,1762809033836,-500.0,0.00017999,2]
[393576631,1762809033845,-500.0,0.00017999,2]
[393576632,1762809033855,-500.0,0.00017999,2]
[393576633,1762809033864,-500.0,0.00017999,2]
[393576634,1762809033873,-500.0,0.00017999,2]
[393576635,1762809033882,-500.0,0.00017999,2]
[393576636,1762809033892,-425.34816091,0.00017999,2]
[393576637,1762809033903,-500.0,0.00017999,2]
[393576638,1762809033913,-500.0,0.00017999,2]
[393576639,1762809033923,-500.0,0.00017999,2]
[393576640,1762809033932,-500.0,0.00017999,2]
[393576641,1762809033942,-500.0,0.00017999,2]
[393576642,1762809033951,-500.0,0.00017999,2]
[393576643,1762809033962,-500.0,0.00017999,2]
[393576644,1762809033971,-500.0,0.00017999,2]
[393576645,1762809033980,-500.0,0.00017999,2]
[393576646,1762809033990,-538.97549019,0.00017999,2]
[393576647,1762809034000,-500.0,0.00017999,2]
[393576648,1762809034009,-500.0,0.00017999,2]
[393576649,1762809034019,-500.0,0.00017999,2]
[393576650,1762809034028,-500.0,0.00017999,2]
[393576651,1762809034037,-500.0,0.00017999,2]
[393576652,1762809034047,-500.0,0.00017999,2]
[393576653,1762809034056,-500.0,0.00017999,2]
[393576654,1762809034065,-500.0,0.00017999,2]
[393576655,1762809034075,-500.0,0.00017999,2]
[393576656,1762809034084,-500.0,0.00017999,2]
[393576657,1762809034093,-500.0,0.00017999,2]
[393576658,1762809034103,-500.0,0.00017999,2]
[393576659,1762809034112,-500.0,0.00017999,2]
[393576660,1762809034122,-500.0,0.00017999,2]
[393576661,1762809034131,-500.0,0.00017999,2]
[393576662,1762809034141,-500.0,0.00017999,2]
[393576663,1762809034151,-248.08180814,0.00017999,2]
[393576664,1762809034160,-199.83064822,0.00017999,2]
[393576665,1762809034169,-44613.32115994,0.00018,2]
[393576666,1762809034183,-801.79415419,0.00018,2]
[393576667,1762809034198,-49537.46050224,0.00018,2]
[393576668,1762809034213,-22695.67420731,0.00018,2]
[393576669,1762809034225,-1515.09423458,0.00018,2]
[393576670,1762809034239,-2572.07999342,0.00018,2]
[393576671,1762809034251,-284.68336183,0.00018,2]
[393576675,1762809037554,-500.0,0.00017982,2]
[393576676,1762809037564,-340.17933999,0.00018,2]
[393576677,1762809037576,-689.32368187,0.00018,2]
[393576678,1762809037611,-126937.74249137,0.00018,2]
[393576679,1762809037667,-2292864.28749399,0.00018,2]
[393576680,1762809037723,-356.77477957,0.00018,2]
[393576683,1762809039601,-1710.19466749,0.00018,2]
[393576686,1762809042918,-48980.35245024,0.00018,2]
[393576687,1762809042965,-2981.76,0.00018,2]
[393576688,1762809042977,-269.95849999,0.00018,2]
[393576692,1762809044001,-2647.0115254,0.00018,2]
[393576693,1762809044013,-404.95500358,0.00018,2]
[393576694,1762809044060,-271.37002482,0.00018,2]
[393576695,1762809044190,-8740.31191082,0.00018,2]
[393576696,1762809044202,-6924.17304954,0.00018,2]
[393576697,1762809044246,-495.68719811,0.00018,2]
[393576698,1762809044258,-5506.52241984,0.00018,2]
[393576699,1762809044269,-1420.71900848,0.00018,2]
[393576720,1762809045709,-333.302,0.00018,2]
[393576721,1762809045766,-4129.999998,0.00018,2]
[393576722,1762809045880,-5218.94632364,0.00018,2]
[393576723,1762809045894,-588.94,0.00018,2]
[393576728,1762809498841,150.0,0.00017182,120]
[393576732,1762809910252,1052.32012632,0.000154,2]
[393576733,1762810013433,5000.00274369,0.000162,5]
[393576734,1762810021041,-1852.42,0.00016366,2]
[393576735,1762810021212,1517.64,0.000153,2]
[393576740,1762810037153,-2566.32,0.00016438,2]
[393576741,1762810037185,-250.0,0.00016489,2]
[393576742,1762810037217,-1893.04102351,0.00016903,2]
[393576744,1762810043071,-1592.63,0.00016734,2]
[393576745,1762810043103,-1200.0,0.00016972,2]
[393576746,1762810043137,-221.77639274,0.00016973,2]
[393576747,1762810043167,-162.35747732,0.00016973,2]
[393576748,1762810043198,-158.08440621,0.00016973,2]
[393576749,1762810043229,-250.45547674,0.00016978,2]
[393576750,1762810043260,-250.0,0.00017,2]
[393576751,1762810043289,-1071.0,0.00017045,2]
[393576752,1762810049074,-300.0,0.00017045,2]
[393576753,1762810049102,-151.0,0.00017046,2]
[393576754,1762810049132,-151.0,0.00017046,2]
[393576755,1762810049160,-151.0,0.00017046,2]
[393576756,1762810049190,-151.0,0.00017046,2]
[393576757,1762810049218,-151.0,0.00017046,2]
[393576758,1762810049246,-151.0,0.00017046,2]
[393576759,1762810049275,-151.0,0.00017046,2]
[393576760,1762810049304,-151.0,0.00017046,2]
[393576761,1762810049333,-151.0,0.00017046,2]
[393576762,1762810049372,-250.0,0.00017046,2]
[393576763,1762810049405,-151.0,0.00017046,2]
[393576764,1762810049435,-250.0,0.00017046,2]
[393576765,1762810049467,-250.0,0.00017046,2]
[393576766,1762810049496,-151.0,0.00017046,2]
[393576767,1762810049525,-250.0,0.00017046,2]
[393576768,1762810049558,-250.0,0.00017046,2]
[393576769,1762810049586,-250.0,0.00017046,2]
[393576770,1762810049615,-250.0,0.00017046,2]
[393576771,1762810049643,-250.0,0.00017046,2]
[393576772,1762810049673,-151.0,0.00017046,2]
[393576773,1762810049701,-250.0,0.00017046,2]
[393576774,1762810049728,-151.0,0.00017046,2]
[393576775,1762810049761,-250.0,0.00017046,2]
[393576776,1762810049789,-224.01,0.00017046,2]
[393576778,1762810064604,2195.21217614,0.00013,2]
[393576779,1762810071025,10000.01,0.00015,2]
[393576780,1762810071057,10000.01,0.00015,2]
[393576781,1762810071089,10000.01,0.00015,2]
[393576782,1762810071112,10000.01,0.00015,2]
[393576783,1762810071136,10000.01,0.00015,2]
[393576784,1762810071159,10000.01,0.00015,2]
[393576785,1762810071183,10000.01,0.00015,2]
[393576786,1762810071218,50000.0,0.00015,2]
[393576787,1762810073216,-252.33107047,0.00015,2]
[393576788,1762810075468,-205.0,0.00015,2]
[393576789,1762810078718,-254.634109,0.00015,2]
[393576790,1762810080555,-236.73304557,0.00015,2]
[393576791,1762810084588,1225.35125549,0.0001439,2]
[393576792,1762810085985,-225.97,0.0001439,2]
[393576793,1762810087482,-159.79474072,0.0001439,2]
[393576794,1762810088997,-247.52854389,0.0001439,2]
[393576795,1762810092368,-248.407888,0.0001439,2]
[393576796,1762810094610,-307.37600173,0.0001439,2]
[393576797,1762810096459,-151.86366074,0.0001439,2]
[393576798,1762810099533,-404.30319982,0.0001439,2]
[393576799,1762810108663,-4750.42467101,0.00015,2]
[393576800,1762810111464,-556.63917551,0.00014999,2]
[393576801,1762810111498,-8886.73164898,0.00015,2]
[393576802,1762810113567,-250.0,0.00014925,2]
[393576803,1762810116034,1290.18375982,0.0001,2]
[393576804,1762810117060,-282.22729762,0.00014925,2]
[393576806,1762810119307,-217.0605702,0.000149,2]
[393576807,1762810119331,-88.27369863,0.00014925,2]
[393576808,1762810120966,-159.74,0.00014925,2]
[393576809,1762810123165,-230.19693702,0.00014925,2]
[393576810,1762810125083,-186.74989994,0.00014925,2]
[393576811,1762810127313,-158.52185975,0.000149,2]
[393576812,1762810127335,-126.75540325,0.00014925,2]
[393576813,1762810129751,-163.09010006,0.00014925,2]
[393576814,1762810131486,-333.0,0.00014925,2]
[393576815,1762810134217,-413.6652936,0.00014925,2]
[393576816,1762810135778,-244.26812788,0.00014925,2]
[393576817,1762810135803,-48.74591681,0.00014999,2]
[393576818,1762810137389,-188.01301231,0.00014999,2]
[393576819,1762810139070,-186.39494075,0.00014999,2]
[393576820,1762810141442,-230.60235556,0.00014998,2]
[393576821,1762810157867,-69.39764444,0.00014998,2]
[393576822,1762810157889,-76.84613013,0.00014999,2]
[393576823,1762810157910,-84.3936835,0.00014999,2]
[393576824,1762810160133,-230.24642407,0.00014999,2]
[393576825,1762810160155,-60.90717578,0.00014999,2]
[393576826,1762810162420,-128.49776982,0.00014999,2]
[393576827,1762810162442,-172.67653805,0.00014999,2]
[393576828,1762810164674,-198.82569213,0.00014999,2]
[393576829,1762810166412,-278.07369522,0.00014999,2]
[393576830,1762810166438,-53.88455442,0.00014999,2]
[393576831,1762810168709,-226.03320464,0.00014999,2]
[393576832,1762810187885,-203.57281743,0.00014999,2]
[393576842,1762810191820,-116.51942351,0.00014999,2]
[393576843,1762810191846,-168.74392283,0.00014999,2]
[393576846,1762810193940,-289.5923707,0.00014999,2]
[393576849,1762810199073,-41.66370647,0.00014999,2]
[393576850,1762810199098,-119.97443584,0.00014999,2]
[393576851,1762810201258,-323.62579978,0.00014998,2]
[393576852,1762810217862,-225.60086673,0.00014998,2]
[393576854,1762810222121,-327.92942768,0.00014998,2]
[393576855,1762810227850,-208.4598231,0.00014998,2]
[393576856,1762810229818,-114.38408271,0.00014998,2]
[393576857,1762810229840,-300.0,0.00014998,2]
[393576858,1762810229861,-142.16056651,0.00014998,2]
[393576864,1762810231792,-7.83943349,0.00014998,2]
[393576865,1762810231801,-300.0,0.00014998,2]
[393576866,1762810231810,-326.63185714,0.00014999,2]
[393576867,1762810231822,-53.39370702,0.00014999,2]
[393576868,1762810231832,-500.0,0.00014999,2]
[393576869,1762810231842,-500.0,0.00014999,2]
[393576870,1762810231852,-500.0,0.00014999,2]
[393576871,1762810231862,-295.36386149,0.00014999,2]
[393576872,1762810231874,-204.63613851,0.00014999,2]
[393576873,1762810231883,-95.36086149,0.00014999,2]
[393576874,1762810231895,-404.63913851,0.00014999,2]
[393576875,1762810231904,-500.0,0.00014999,2]
[393576876,1762810231914,-450.75603693,0.00014999,2]
[393576877,1762810231925,-49.24396307,0.00014999,2]
[393576878,1762810231935,-500.0,0.00014999,2]
[393576879,1762810231944,-404.06630484,0.00014999,2]
[393576880,1762810231956,-95.93369516,0.00014999,2]
[393576881,1762810231966,-214.37630484,0.00014999,2]
[393576882,1762810231981,-285.62369516,0.00014999,2]
[393576883,1762810231990,-500.0,0.00014999,2]
[393576884,1762810232000,-500.0,0.00014999,2]
[393576885,1762810232009,-500.0,0.00014999,2]
[393576886,1762810232019,-500.0,0.00014999,2]
[393576888,1762810232028,-500.0,0.00014999,2]
[393576889,1762810232038,-500.0,0.00014999,2]
[393576890,1762810232048,-500.0,0.00014999,2]
[393576891,1762810232058,-500.0,0.00014999,2]
[393576892,1762810232067,-500.0,0.00014999,2]
[393576893,1762810232076,-500.0,0.00014999,2]
[393576895,1762810232086,-239.73903618,0.00014999,2]
[393576897,1762810232097,-260.26096382,0.00014999,2]
[393576899,1762810232106,-500.0,0.00014999,2]
[393576901,1762810232115,-500.0,0.00014999,2]
[393576903,1762810232125,-500.0,0.00014999,2]
[393576905,1762810232134,-500.0,0.00014999,2]
[393576907,1762810232143,-500.0,0.00014999,2]
[393576910,1762810232152,-500.0,0.00014999,2]
[393576913,1762810232161,-500.0,0.00014999,2]
[393576916,1762810232170,-500.0,0.00014999,2]
[393576919,1762810232179,-500.0,0.00014999,2]
[393576922,1762810232187,-448.66350121,0.00014999,2]
[393576925,1762810232196,-500.0,0.00014999,2]
[393576928,1762810232205,-500.0,0.00014999,2]
[393576931,1762810232214,-500.0,0.00014999,2]
[393576934,1762810232223,-500.0,0.00014999,2]
[393576937,1762810232232,-500.0,0.00014999,2]
[393576940,1762810232241,-500.0,0.00014999,2]
[393576943,1762810232250,-297.9122479,0.00014999,2]
[393576945,1762810232267,-202.0877521,0.00014999,2]
[393576947,1762810232276,-500.0,0.00014999,2]
[393576950,1762810232285,-500.0,0.00014999,2]
[393576953,1762810232295,-397.13975157,0.00014999,2]
[393576956,1762810232306,-41.67123378,0.00014999,2]
[393576958,1762810232315,-500.0,0.00014999,2]
[393576959,1762810232325,-500.0,0.00014999,2]
[393576961,1762810232335,-362.17602227,0.00014999,2]
[393576964,1762810232346,-137.82397773,0.00014999,2]
[393576965,1762810232355,-500.0,0.00014999,2]
[393576968,1762810232364,-500.0,0.00014999,2]
[393576969,1762810232373,-500.0,0.00014999,2]
[393576971,1762810232383,-500.0,0.00014999,2]
[393576973,1762810232393,-500.0,0.00014999,2]
[393576975,1762810232402,-500.0,0.00014999,2]
[393576977,1762810232412,-500.0,0.00014999,2]
[393576979,1762810232422,-500.0,0.00014999,2]
[393576981,1762810232431,-500.0,0.00014999,2]
[393576983,1762810232440,-500.0,0.00014999,2]
[393576985,1762810232449,-500.0,0.00014999,2]
[393576987,1762810232458,-500.0,0.00014999,2]
[393576989,1762810232468,-500.0,0.00014999,2]
[393576992,1762810232477,-500.0,0.00014999,2]
[393576994,1762810232486,-500.0,0.00014999,2]
[393576996,1762810232497,-500.0,0.00014999,2]
[393576998,1762810232506,-500.0,0.00014999,2]
[393576999,1762810232515,-500.0,0.00014999,2]
[393577001,1762810232525,-500.0,0.00014999,2]
[393577003,1762810232534,-500.0,0.00014999,2]
[393577004,1762810232543,-500.0,0.00014999,2]
[393577005,1762810232552,-176.75383107,0.00014999,2]
[393577006,1762810232561,-500.0,0.00014999,2]
[393577007,1762810232570,-500.0,0.00014999,2]
[393577008,1762810232580,-500.0,0.00014999,2]
[393577009,1762810232589,-353.74930756,0.00014999,2]
[393577010,1762810232603,-500.0,0.00014999,2]
[393577011,1762810232611,-226.03320464,0.00014999,2]
[393577012,1762810232620,-151.0,0.00014999,2]
[393577013,1762810232630,-167.90990946,0.00014999,2]
[393577014,1762810232639,-500.0,0.00014999,2]
[393577015,1762810232649,-500.0,0.00014999,2]
[393577016,1762810232658,-275.54284394,0.00014999,2]
[393577017,1762810232667,-221.81020323,0.00014999,2]
[393577018,1762810232678,-3258.94482439,0.00015,2]
[393577019,1762810232690,-312.0,0.00015,2]
[393577020,1762810232700,-5710.08935412,0.00015,2]
[393577021,1762810232711,-153190.96861269,0.00015,2]
[393577022,1762810232763,-302.4022426,0.00015,2]
[393577023,1762810236991,-199.11318271,0.00015,2]
[393577029,1762810237738,-386.1649995,0.00015,2]
[393577030,1762810237750,-1008.93843287,0.00015,2]
[393577031,1762810237796,-1964.8018885,0.00015,2]
[393577032,1762810237807,-221535.04027372,0.00015,2]
[393577033,1762810237817,-25268.22570927,0.00015,2]
[393577034,1762810237827,-11305.72426722,0.00015,3]
[393577035,1762810237837,-42761.37692685,0.00015,2]
[393577036,1762810237847,-151.0,0.00015,2]
[393577037,1762810237857,-208.20828773,0.00015,2]
[393577038,1762810237866,-217.06057017,0.00015233,2]
[393577039,1762810237876,-195.0,0.00015489,2]
[393577040,1762810237887,-217.06057017,0.00015567,2]
[393577041,1762810237897,-158.52185975,0.000159,2]
[393577042,1762810237908,-217.06057017,0.000159,2]
[393577043,1762810237918,-250.0,0.00015978,2]
[393577044,1762810237928,-255.0,0.00016123,2]
[393577045,1762810237939,-217.06057017,0.00016233,2]
[393577046,1762810237950,-151.0,0.00016262,2]
[393577047,1762810237961,-3951.09,0.00016265,2]
[393577048,1762810237972,-420.0,0.00016415,2]
[393577050,1762810237982,-500.0,0.00016438,2]
[393577051,1762810237991,-500.0,0.00016438,2]
[393577052,1762810238001,-500.0,0.00016438,2]
[393577053,1762810238011,-268.46635575,0.00016438,2]
[393577054,1762810238020,-500.0,0.00016438,2]
[393577055,1762810238030,-500.0,0.00016438,2]
[393577056,1762810238039,-500.0,0.00016438,2]
[393577057,1762810238048,-500.0,0.00016438,2]
[393577058,1762810238058,-500.0,0.00016438,2]
[393577059,1762810238067,-500.0,0.00016438,2]
[393577060,1762810238076,-500.0,0.00016438,2]
[393577062,1762810238085,-500.0,0.00016438,2]
[393577063,1762810238094,-500.0,0.00016438,2]
[393577064,1762810238103,-500.0,0.00016438,2]
[393577065,1762810238113,-500.0,0.00016438,2]
[393577066,1762810238122,-500.0,0.00016438,2]
[393577067,1762810238132,-177.69346059,0.00016438,2]
[393577068,1762810238142,-500.0,0.00016438,2]
[393577069,1762810238153,-500.0,0.00016438,2]
[393577070,1762810238163,-1680.0,0.00016498,2]
[393577071,1762810238172,-250.0,0.000165,2]
[393577072,1762810238182,-195.0,0.000165,2]
[393577073,1762810238192,-300.0,0.000165,2]
[393577074,1762810238202,-300.0,0.000165,2]
[393577075,1762810238212,-410.90810982,0.000165,2]
[393577076,1762810238223,-217.06057017,0.00016567,2]
[393577077,1762810238233,-272.61854156,0.0001662,2]
[393577078,1762810238243,-158.52185975,0.000169,2]
[393577079,1762810238253,-217.06057017,0.000169,2]
[393577080,1762810238263,-820.3036,0.00016957,2]
[393577081,1762810238272,-1000.0,0.00016957,2]
[393577082,1762810238283,-202.31,0.0001702,2]
[393577083,1762810238294,-1199.0,0.00017045,2]
[393577084,1762810238304,-25.99,0.00017046,2]
[393577085,1762810238314,-151.0,0.00017046,2]
[393577086,1762810238324,-250.0,0.00017046,2]
[393577087,1762810238334,-250.0,0.00017046,2]
[393577088,1762810238344,-151.0,0.00017046,2]
[393577089,1762810238354,-250.0,0.00017046,2]
[393577090,1762810238364,-151.0,0.00017046,2]
[393577091,1762810238374,-250.0,0.00017046,2]
[393577092,1762810238384,-151.0,0.00017046,2]
[393577093,1762810238394,-250.0,0.00017046,2]
[393577094,1762810238404,-151.0,0.00017046,2]
[393577095,1762810238413,-250.0,0.00017046,2]
[393577096,1762810238423,-151.0,0.00017046,2]
[393577097,1762810238433,-250.0,0.00017046,2]
[393577098,1762810238443,-151.0,0.00017046,2]
[393577099,1762810238454,-250.0,0.00017046,2]
[393577100,1762810238464,-151.0,0.00017046,2]
[393577101,1762810238474,-250.0,0.00017046,2]
[393577102,1762810238483,-151.0,0.00017046,2]
[393577103,1762810238494,-250.0,0.00017046,2]
[393577104,1762810238503,-250.0,0.00017046,2]
[393577105,1762810238513,-533.35,0.00017047,2]
[393577106,1762810238523,-500.0,0.00017053,2]
[393577107,1762810238533,-500.0,0.00017053,2]
[393577108,1762810238543,-500.0,0.00017053,2]
[393577109,1762810238553,-500.0,0.00017053,2]
[393577110,1762810238563,-420000.0,0.00017057,2]
[393577111,1762810238572,-500.0,0.00017073,2]
[393577112,1762810238582,-5544.0,0.00017078,2]
[393577113,1762810238592,-150.0,0.00017182,2]
[393577114,1762810238605,-150.0,0.00017182,2]
[393577115,1762810238616,-500.0,0.00017182,2]
[393577116,1762810238626,-999.0,0.00017182,3]
[393577117,1762810238636,-217.06057017,0.00017233,2]
[393577118,1762810238647,-533.35,0.00017321,2]
[393577119,1762810238657,-433.0,0.00017338,2]
[393577120,1762810238667,-168.0,0.00017389,2]
[393577121,1762810238678,-150.0,0.00017494,2]
[393577122,1762810238688,-300.0,0.00017499,2]
[393577123,1762810238698,-168.0,0.00017511,2]
[393577124,1762810238708,-168.0,0.00017532,2]
[393577125,1762810238718,-217.06057017,0.00017567,2]
[393577126,1762810238728,-533.35,0.00017595,2]
[393577127,1762810238738,-1388.0,0.000176,2]
[393577128,1762810238749,-1028.69958793,0.00017612,2]
[393577129,1762810238759,-549.94036606,0.00017621,2]
[393577130,1762810238769,-221.96065187,0.00017624,2]
[393577131,1762810238779,-1000.0,0.000177,2]
[393577132,1762810238788,-1000.0,0.000177,2]